bitfinex-derivatives/quotes_BTCF0:USTF0_20240910
["timestamp","ask_amount","ask_price","bid_price","bid_amount"]
[1725947265972,0.62872832,56916.0,56915.0,0.003]
[1725947266167,0.75324927,56916.0,56898.0,0.3218]
[1725947266473,0.75324927,56916.0,56909.0,0.087854]
[1725947266474,0.247847,56914.0,56909.0,0.087854]
[1725947266667,0.247847,56914.0,56893.0,0.3218]
[1725947266668,0.247847,56914.0,56910.0,0.087853]
[1725947267068,0.14155201,56913.0,56910.0,0.087853]
[1725947267267,0.22940101,56913.0,56910.0,0.087853]
[1725947268072,0.08785,56912.0,56910.0,0.087853]
[1725947268473,0.21236495,56911.0,56910.0,0.087853]
[1725947268678,0.44176896,56911.0,56910.0,0.087853]
[1725947269568,0.44276896,56911.0,56910.0,0.087853]
[1725947269771,0.44376896,56911.0,56910.0,0.087853]
[1725947270974,0.087855,56909.0,56908.0,0.087855]
[1725947271180,0.82384901,56909.0,56908.0,0.087855]
[1725947271368,0.96540102,56909.0,56908.0,0.087855]
[1725947271875,0.96538988,56909.0,56908.0,0.087855]
[1725947272080,0.087859,56907.0,56906.0,0.087858]
[1725947272277,0.82384187,56907.0,56906.0,0.087858]
[1725947272574,0.82384187,56907.0,56900.0,0.087868]
[1725947272772,0.73558287,56906.0,56900.0,0.087868]
[1725947272981,0.088259,56907.0,56906.0,0.087859]
[1725947273173,0.087859,56907.0,56906.0,0.30706635]
[1725947273372,0.088859,56907.0,56906.0,0.30706635]
[1725947273776,0.087859,56907.0,56906.0,0.30706635]
[1725947274977,0.088859,56907.0,56906.0,0.30706635]
[1725947275378,0.089859,56907.0,56906.0,0.30706635]
[1725947276690,0.089859,56907.0,56906.0,0.20290424]
[1725947277186,0.089859,56907.0,56906.0,0.30708843]
[1725947277776,0.089859,56907.0,56906.0,0.20290424]
[1725947278276,0.177718,56907.0,56906.0,0.11504524]
[1725947279090,0.447718,56907.0,56906.0,0.20188857]
[1725947279383,0.447718,56907.0,56906.0,0.0004]
[1725947279983,0.447718,56907.0,56906.0,0.06988535]
[1725947281079,0.447718,56907.0,56906.0,0.0004]
[1725947281274,1.574918,56907.0,56905.0,0.06948535]
[1725947281480,0.2061,56906.0,56904.0,0.06949425]
[1725947281686,0.0004,56905.0,56904.0,0.06949425]
[1725947281985,0.295761,56905.0,56904.0,0.06949425]
[1725947283078,0.087862,56904.0,56903.0,0.06949425]
[1725947283384,0.088262,56904.0,56903.0,0.06949425]
[1725947283577,0.087867,56901.0,56900.0,0.08684333]
[1725947283782,0.0004,56901.0,56900.0,0.20061132]
[1725947284786,0.088267,56901.0,56900.0,0.20061132]
[1725947285791,0.090267,56901.0,56900.0,0.20061132]
[1725947286490,0.090267,56901.0,56900.0,0.11376799]
[1725947287091,0.0461,56906.0,56900.0,0.64100799]
[1725947287092,0.0004,56906.0,56900.0,0.64100799]
[1725947287387,0.088259,56906.0,56905.0,0.088261]
[1725947287589,0.088259,56906.0,56905.0,0.20202899]
[1725947288091,0.0004,56906.0,56905.0,0.20202899]
[1725947288284,0.001,56906.0,56905.0,0.20202899]
[1725947288490,0.002,56906.0,56905.0,0.20202899]
[1725947289179,0.087845,56915.0,56911.0,0.087852]
[1725947289498,0.087845,56915.0,56914.0,0.0004]
[1725947289693,0.357845,56915.0,56914.0,0.0004]
[1725947289899,0.27,56915.0,56914.0,0.088247]
[1725947290197,0.27,56915.0,56914.0,0.28755615]
[1725947290385,0.27,56915.0,56914.0,0.24980901]
[1725947290694,0.087836,56921.0,56915.0,0.087844]
[1725947290885,0.087836,56921.0,56920.0,0.06944695]
[1725947291085,0.087836,56921.0,56920.0,0.06984695]
[1725947291288,0.357836,56921.0,56920.0,0.06984695]
[1725947291797,0.358836,56921.0,56920.0,0.06984695]
[1725947292180,0.358836,56921.0,56920.0,0.0004]
[1725947292487,0.359836,56921.0,56920.0,0.0004]
[1725947292791,0.360836,56921.0,56920.0,0.0004]
[1725947296189,0.360836,56921.0,56920.0,0.088238]
[1725947296389,0.360836,56921.0,56920.0,0.15762134]
[1725947296690,0.360836,56921.0,56920.0,0.088238]
[1725947297099,0.360836,56921.0,56920.0,0.15762628]
[1725947297599,0.360836,56921.0,56920.0,0.15761038]
[1725947298595,0.360836,56921.0,56920.0,0.088238]
[1725947298792,0.360836,56921.0,56920.0,0.15761038]
[1725947299195,0.360836,56921.0,56920.0,0.088238]
[1725947301697,0.359836,56921.0,56920.0,0.090238]
[1725947301895,0.358836,56921.0,56920.0,0.16061038]
[1725947302296,0.358836,56921.0,56920.0,0.15861038]
[1725947302497,0.358836,56921.0,56920.0,0.089238]
[1725947303595,0.357836,56921.0,56920.0,0.088238]
[1725947303799,0.358836,56921.0,56920.0,0.088238]
[1725947305200,0.446672,56921.0,56920.0,0.0004]
[1725947308100,0.358836,56921.0,56920.0,0.0004]
[1725947309100,0.271,56921.0,56920.0,0.05245125]
[1725947309303,0.001,56921.0,56920.0,0.088238]
[1725947309694,0.0041,56928.0,56927.0,0.087827]
[1725947309901,0.357824,56929.0,56928.0,0.087825]
[1725947310097,0.357824,56929.0,56928.0,0.088225]
[1725947311991,0.357824,56929.0,56928.0,0.089225]
[1725947312797,0.357824,56929.0,56928.0,0.090225]
[1725947313008,0.357824,56929.0,56928.0,0.0024]
[1725947313807,0.360824,56929.0,56928.0,0.0004]
[1725947316102,0.360824,56929.0,56928.0,0.05243076]
[1725947316898,0.360824,56929.0,56928.0,0.0004]
[1725947317711,0.360824,56929.0,56928.0,0.088225]
[1725947318307,0.359824,56929.0,56928.0,0.089225]
[1725947318893,0.359824,56929.0,56928.0,0.088225]
[1725947319300,0.357824,56929.0,56928.0,0.089225]
[1725947320202,0.358824,56929.0,56928.0,0.088225]
[1725947322500,0.089824,56929.0,56928.0,0.088225]
[1725947322704,0.002,56929.0,56928.0,0.17494294]
[1725947322911,0.002,56929.0,56928.0,0.20189064]
[1725947323213,0.002,56929.0,56928.0,0.28872959]
[1725947323214,0.273,56929.0,56928.0,0.28872959]
[1725947323802,0.273,56929.0,56928.0,0.2885683]
[1725947324808,0.360824,56929.0,56928.0,0.2885683]
[1725947326014,0.360824,56929.0,56928.0,0.28852385]
[1725947326314,0.360824,56929.0,56928.0,0.17506395]
[1725947326708,0.360824,56929.0,56928.0,0.088225]
[1725947330717,0.360824,56929.0,56928.0,0.0004]
[1725947336919,0.410924,56929.0,56928.0,0.0004]
[1725947338023,0.456124,56929.0,56928.0,0.0004]
[1725947338922,0.456124,56929.0,56928.0,0.06984972]
[1725947339115,0.456124,56929.0,56928.0,0.0004]
[1725947340020,0.456124,56929.0,56928.0,0.088225]
[1725947340221,0.456124,56929.0,56928.0,0.20184692]
[1725947340523,0.556124,56929.0,56928.0,0.20184692]
[1725947340724,0.556124,56929.0,56928.0,0.11402192]
[1725947340923,0.556124,56929.0,56928.0,0.20098227]
[1725947341226,0.556124,56929.0,56928.0,0.11402192]
[1725947342029,0.556124,56929.0,56928.0,0.08736699]
[1725947342216,0.556124,56929.0,56928.0,0.0004]
[1725947342412,0.643948,56929.0,56928.0,0.0004]
[1725947342917,0.643948,56929.0,56925.0,0.08696699]
[1725947342918,0.17567,56922.0,56921.0,0.10420722]
[1725947343119,0.17567,56922.0,56919.0,0.0041]
[1725947343120,0.1004,56922.0,56919.0,0.08701005]
[1725947343423,0.087842,56917.0,56914.0,0.08701005]
[1725947343631,0.087845,56915.0,56914.0,0.08701005]
[1725947343822,0.358245,56915.0,56914.0,0.20116888]
[1725947344419,0.087847,56914.0,56913.0,0.08701005]
[1725947344626,0.188247,56914.0,56913.0,0.08701005]
[1725947345229,0.458247,56914.0,56913.0,0.08701005]
[1725947345524,0.087848,56913.0,56912.0,0.08701005]
[1725947345729,0.188248,56913.0,56912.0,0.08701005]
[1725947345928,0.08785,56912.0,56911.0,0.08701005]
[1725947346118,0.08785,56912.0,56908.0,0.087856]
[1725947346119,0.087852,56911.0,56910.0,0.08701005]
[1725947346324,0.088252,56911.0,56910.0,0.11421759]
[1725947346520,0.087852,56911.0,56910.0,0.20108553]
[1725947347426,0.087852,56911.0,56909.0,0.08686794]
[1725947347628,0.0004,56910.0,56909.0,0.08686794]
[1725947347824,0.0004,56910.0,56909.0,0.11407696]
[1725947348534,0.0004,56910.0,56909.0,0.20090175]
[1725947348824,0.0004,56910.0,56909.0,0.11407696]
[1725947349425,0.0004,56910.0,56909.0,0.20088727]
[1725947349623,0.089253,56910.0,56909.0,0.20288727]
[1725947350330,0.090253,56910.0,56909.0,0.20488727]
[1725947350543,0.090253,56910.0,56909.0,0.09081031]
[1725947351132,0.090253,56910.0,56909.0,0.17866531]
[1725947352022,0.090253,56910.0,56909.0,0.091855]
[1725947352827,0.090253,56910.0,56909.0,0.004]
[1725947353128,0.176706,56910.0,56909.0,0.004]
[1725947353519,0.176706,56910.0,56909.0,0.07343245]
[1725947354539,0.176706,56910.0,56909.0,0.004]
[1725947355635,0.088853,56910.0,56909.0,0.004]
[1725947356335,0.088853,56910.0,56909.0,0.07343245]
[1725947358537,0.088853,56910.0,56909.0,0.004]
[1725947360529,0.088853,56910.0,56909.0,0.07342769]
[1725947360933,0.248853,56910.0,56909.0,0.07342769]
[1725947363942,0.088853,56910.0,56909.0,0.07342769]
[1725947364238,0.088853,56910.0,56909.0,0.004]
[1725947364937,0.248853,56910.0,56909.0,0.004]
[1725947366331,0.188853,56910.0,56909.0,0.004]
[1725947367937,0.088853,56910.0,56909.0,0.004]
[1725947368141,0.088853,56910.0,56909.0,0.11755012]
[1725947368442,0.088853,56910.0,56909.0,0.20445346]
[1725947369139,0.088853,56910.0,56909.0,0.11755012]
[1725947371240,0.088853,56910.0,56909.0,0.20540512]
[1725947372735,0.088853,56910.0,56909.0,0.30898476]
[1725947373243,0.088853,56910.0,56909.0,0.20457264]
[1725947375249,0.188853,56910.0,56909.0,0.11671764]
[1725947375745,0.088853,56910.0,56909.0,0.11671764]
[1725947376147,0.001,56910.0,56909.0,0.40898476]
[1725947376351,0.0041,56920.0,56909.0,1.43173264]
[1725947376545,0.0041,56923.0,56922.0,0.087835]
[1725947376746,0.087832,56924.0,56923.0,0.087831]
[1725947377051,0.087832,56924.0,56923.0,0.20094864]
[1725947377352,0.087832,56924.0,56923.0,0.088231]
[1725947379353,0.088832,56924.0,56923.0,0.16380497]
[1725947379646,0.088832,56924.0,56923.0,0.094231]
[1725947380641,0.088832,56924.0,56923.0,0.0064]
[1725947382046,0.088832,56924.0,56923.0,0.05854418]
[1725947382246,0.176664,56924.0,56923.0,0.05854418]
[1725947382552,0.088832,56924.0,56923.0,0.0064]
[1725947384346,0.176664,56924.0,56923.0,0.0064]
[1725947384752,0.088832,56924.0,56923.0,0.0064]
[1725947387342,0.088832,56924.0,56923.0,0.05854556]
[1725947388350,0.088832,56924.0,56923.0,0.0064]
[1725947389647,0.176664,56924.0,56923.0,0.0064]
[1725947390050,0.088832,56924.0,56923.0,0.0064]
[1725947391059,0.176664,56924.0,56923.0,0.0064]
[1725947391958,0.088832,56924.0,56923.0,0.0064]
[1725947392156,0.176664,56924.0,56923.0,0.0064]
[1725947398059,0.276664,56924.0,56923.0,0.0064]
[1725947398461,0.276664,56924.0,56923.0,0.07593338]
[1725947398865,0.276664,56924.0,56923.0,0.0064]
[1725947399564,0.188832,56924.0,56923.0,0.0064]
[1725947399762,0.188832,56924.0,56923.0,0.07593338]
[1725947400057,0.276664,56924.0,56923.0,0.0064]
[1725947401161,0.188832,56924.0,56923.0,0.0064]
[1725947401360,0.001,56924.0,56923.0,0.194233]
[1725947402262,0.088832,56924.0,56923.0,0.16382213]
[1725947402861,0.001,56924.0,56923.0,0.16382213]
[1725947403566,0.001,56924.0,56923.0,0.094233]
[1725947404160,0.271,56924.0,56923.0,0.094233]
[1725947404955,0.358832,56924.0,56923.0,0.094233]
[1725947407076,0.358832,56924.0,56923.0,1.43344832]
[1725947407077,0.271,56924.0,56923.0,1.43344832]
[1725947407268,0.0463,56937.0,56931.0,0.087818]
[1725947407462,0.0463,56937.0,56933.0,0.06965091]
[1725947407770,0.0463,56937.0,56935.0,0.06965091]
[1725947407771,0.087813,56936.0,56935.0,0.06965091]
[1725947408471,0.087815,56935.0,56934.0,0.06965091]
[1725947408769,0.087818,56933.0,56932.0,0.087818]
[1725947408972,0.087822,56930.0,56929.0,0.08706364]
[1725947409171,0.0004,56930.0,56929.0,0.08702403]
[1725947409359,0.087822,56930.0,56929.0,0.17484803]
[1725947409561,0.087822,56930.0,56929.0,0.087824]
[1725947409964,0.08782,56932.0,56928.0,0.08702403]
[1725947410164,0.08782,56932.0,56929.0,0.1988747]
[1725947410370,0.0004,56933.0,56932.0,0.087819]
[1725947410570,0.0004,56933.0,56932.0,0.17524303]
[1725947410771,0.0004,56933.0,56932.0,0.087819]
[1725947410971,0.0004,56933.0,56932.0,0.17484303]
[1725947411576,0.0064,56933.0,56932.0,0.087819]
[1725947411975,0.0124,56933.0,56932.0,0.087819]
[1725947412168,0.100218,56933.0,56932.0,0.087819]
[1725947416867,0.100218,56933.0,56931.0,0.0483]
[1725947416868,0.087819,56932.0,56931.0,0.06994468]
[1725947417072,0.088219,56932.0,56931.0,0.0004]
[1725947418180,0.097219,56932.0,56931.0,0.0004]
[1725947418685,0.097219,56932.0,56931.0,0.088221]
[1725947420784,0.097219,56932.0,56931.0,0.248221]
[1725947420785,0.0094,56932.0,56931.0,0.248221]
[1725947420976,0.0074,56932.0,56931.0,0.248221]
[1725947421675,0.0044,56932.0,56931.0,0.248221]
[1725947421876,0.0094,56932.0,56931.0,0.248221]
[1725947422092,0.0094,56932.0,56931.0,0.30036193]
[1725947423889,0.0094,56932.0,56931.0,0.14036193]
[1725947424890,0.0094,56932.0,56931.0,0.088221]
[1725947427085,0.0094,56932.0,56931.0,0.14036089]
[1725947427477,0.0094,56932.0,56931.0,0.088221]
[1725947427677,0.0094,56932.0,56931.0,0.14037085]
[1725947428492,0.0094,56932.0,56931.0,0.088221]
[1725947428685,0.0094,56932.0,56931.0,0.14037875]
[1725947430187,0.087816,56934.0,56933.0,0.087818]
[1725947430392,0.087816,56934.0,56933.0,0.19961029]
[1725947431490,0.094816,56934.0,56933.0,0.19961029]
[1725947431683,0.101816,56934.0,56933.0,0.19961029]
[1725947432588,0.014,56934.0,56933.0,0.19961029]
[1725947432892,0.014,56934.0,56933.0,0.30391036]
[1725947433087,0.014,56934.0,56933.0,0.19961029]
[1725947433287,0.091908,56940.0,56939.0,0.087808]
[1725947433493,0.087808,56940.0,56939.0,0.44625303]
[1725947433694,0.087808,56940.0,56939.0,0.44625046]
[1725947434096,0.087808,56940.0,56939.0,0.38625046]
[1725947434481,0.100808,56940.0,56939.0,0.30030584]
[1725947434686,0.100808,56940.0,56939.0,0.30130584]
[1725947434687,0.113808,56940.0,56939.0,0.30130584]
[1725947435092,0.026,56940.0,56939.0,0.30130584]
[1725947436097,0.026,56940.0,56939.0,0.36130584]
[1725947437293,0.026,56940.0,56939.0,0.250208]
[1725947437489,0.026,56940.0,56939.0,0.26664759]
[1725947438697,0.113807,56940.0,56939.0,0.0024]
[1725947440089,0.201614,56940.0,56939.0,0.0024]
[1725947440297,0.23008446,56940.0,56939.0,0.0024]
[1725947443604,0.39008471,56940.0,56939.0,0.0024]
[1725947444994,0.23008471,56940.0,56939.0,0.0024]
[1725947445195,0.361614,56940.0,56939.0,0.0024]
[1725947445697,0.961614,56940.0,56939.0,0.05461235]
[1725947445903,0.087816,56934.0,56932.0,0.06962197]
[1725947446201,0.087816,56934.0,56931.0,0.0004]
[1725947446202,0.087819,56932.0,56931.0,0.0004]
[1725947446398,0.088219,56932.0,56931.0,0.05261984]
[1725947446699,1.215179,56932.0,56931.0,0.05261984]
[1725947446900,1.302998,56932.0,56931.0,0.05261984]
[1725947447102,1.302998,56932.0,56931.0,0.05221984]
[1725947447301,0.175642,56931.0,56930.0,0.05221984]
[1725947447500,0.336042,56931.0,56930.0,0.05221984]
[1725947447704,1.463002,56931.0,56930.0,0.05221984]
[1725947448097,0.936042,56931.0,56930.0,0.05221984]
[1725947448298,1.463002,56931.0,56930.0,0.05221984]
[1725947448502,0.175644,56930.0,56929.0,0.05221984]
[1725947448704,0.336044,56930.0,56929.0,0.05221984]
[1725947448906,0.087827,56927.0,56926.0,0.06962197]
[1725947449105,0.088227,56927.0,56926.0,0.06962197]
[1725947449907,0.088227,56927.0,56923.0,0.087833]
[1725947450093,0.0004,56924.0,56923.0,0.087833]
[1725947451505,0.0014,56924.0,56923.0,0.093833]
[1725947452297,0.089232,56924.0,56923.0,0.29686155]
[1725947453608,0.089232,56924.0,56923.0,0.098833]
[1725947456813,0.0014,56924.0,56923.0,0.098833]
[1725947457005,0.089232,56924.0,56923.0,0.098833]
[1725947462310,0.0014,56924.0,56923.0,0.713706]
[1725947462509,0.09192,56932.0,56931.0,0.087821]
[1725947462712,0.0004,56933.0,56932.0,0.087819]
[1725947463213,0.0041,56939.0,56938.0,0.08781]
[1725947463522,0.087804,56942.0,56941.0,0.087805]
[1725947463709,0.087804,56942.0,56941.0,0.088205]
[1725947464711,0.100804,56942.0,56941.0,0.089205]
[1725947465215,0.113804,56942.0,56941.0,0.090205]
[1725947465718,0.026,56942.0,56941.0,0.090205]
[1725947471313,0.026,56942.0,56941.0,0.10624461]
[1725947473207,0.113804,56942.0,56941.0,0.10624461]
[1725947473409,0.113804,56942.0,56941.0,0.0024]
[1725947474311,0.253608,56942.0,56941.0,0.0024]
[1725947477414,0.27028352,56942.0,56941.0,0.0024]
[1725947477818,0.27028352,56942.0,56941.0,0.05447711]
[1725947478725,0.27028352,56942.0,56941.0,0.0024]
[1725947479720,0.27028352,56942.0,56941.0,0.07183614]
[1725947480719,0.27028352,56942.0,56941.0,0.0024]
[1725947480919,0.18247952,56942.0,56941.0,0.07183614]
[1725947481115,0.18247952,56942.0,56941.0,0.0024]
[1725947481630,0.165804,56942.0,56941.0,0.0024]
[1725947482321,0.165804,56942.0,56941.0,0.090205]
[1725947483029,0.113804,56942.0,56941.0,0.090205]
[1725947483221,0.026,56942.0,56941.0,0.090205]
[1725947483427,0.026,56942.0,56941.0,0.20090911]
[1725947488227,0.113804,56942.0,56941.0,0.0024]
[1725947488433,0.113804,56942.0,56941.0,0.07196532]
[1725947488631,0.113804,56942.0,56941.0,0.0024]
[1725947489831,0.201608,56942.0,56941.0,0.0024]
[1725947490428,0.201608,56942.0,56941.0,0.07196532]
[1725947491024,0.201608,56942.0,56941.0,0.0024]
[1725947491025,0.23007727,56942.0,56941.0,0.0024]
[1725947491219,0.33514274,56942.0,56941.0,0.0024]
[1725947491534,0.23007727,56942.0,56941.0,0.0024]
[1725947491729,0.201608,56942.0,56941.0,0.0024]
[1725947491928,0.23007727,56942.0,56941.0,0.0024]
[1725947492430,0.23007724,56942.0,56941.0,0.0024]
[1725947493029,0.14227324,56942.0,56941.0,0.0024]
[1725947495838,0.75691724,56942.0,56941.0,0.0024]
[1725947496935,0.86220031,56942.0,56941.0,0.0024]
[1725947497244,0.75691724,56942.0,56941.0,0.0024]
[1725947497431,0.86219014,56942.0,56941.0,0.0024]
[1725947498038,0.728448,56942.0,56941.0,0.0024]
[1725947498627,0.640644,56942.0,56941.0,0.0024]
[1725947498938,0.113804,56942.0,56941.0,0.0024]
[1725947501335,0.201608,56942.0,56941.0,0.0024]
[1725947502533,0.113804,56942.0,56941.0,0.0024]
[1725947502837,0.201608,56942.0,56941.0,0.0024]
[1725947504736,0.113804,56942.0,56941.0,0.0024]
[1725947505641,0.201608,56942.0,56941.0,0.0024]
[1725947506044,0.23007815,56942.0,56941.0,0.0024]
[1725947506542,0.14227415,56942.0,56941.0,0.0024]
[1725947506843,0.14227407,56942.0,56941.0,0.0024]
[1725947508140,0.23007807,56942.0,56941.0,0.0024]
[1725947509141,0.14227407,56942.0,56941.0,0.0024]
[1725947511648,0.23007807,56942.0,56941.0,0.0024]
[1725947512343,0.23007845,56942.0,56941.0,0.0024]
[1725947512943,0.201608,56942.0,56941.0,0.0024]
[1725947516142,0.113804,56942.0,56941.0,0.0024]
[1725947516544,0.201608,56942.0,56941.0,0.05461998]
[1725947517051,0.201608,56942.0,56941.0,0.0024]
[1725947517251,0.113804,56942.0,56941.0,0.0024]
[1725947517654,0.201608,56942.0,56941.0,0.0024]
[1725947519152,0.113804,56942.0,56941.0,0.0024]
[1725947519546,0.201608,56942.0,56941.0,0.0024]
[1725947519747,0.113804,56942.0,56941.0,0.0024]
[1725947520152,0.201608,56942.0,56941.0,0.0024]
[1725947521158,0.113804,56942.0,56941.0,0.0024]
[1725947521350,0.201608,56942.0,56941.0,0.0024]
[1725947522355,0.24873992,56942.0,56941.0,0.0024]
[1725947522950,0.27720965,56942.0,56941.0,0.0024]
[1725947523151,0.23007773,56942.0,56941.0,0.0024]
[1725947524250,0.33007773,56942.0,56941.0,0.0024]
[1725947526459,0.17563,56935.0,56934.0,0.0041]
[1725947526657,0.087819,56932.0,56931.0,0.0004]
[1725947526861,0.188219,56932.0,56931.0,0.0004]
[1725947527176,0.187819,56932.0,56931.0,0.088221]
[1725947527552,0.187819,56932.0,56931.0,0.087821]
[1725947527754,0.189819,56932.0,56931.0,0.087821]
[1725947529359,0.191819,56932.0,56931.0,0.087821]
[1725947532365,0.191819,56932.0,56931.0,0.1749747]
[1725947532566,0.191819,56932.0,56931.0,0.19889403]
[1725947533255,0.191819,56932.0,56931.0,0.28605026]
[1725947533761,0.191819,56932.0,56931.0,0.17497723]
[1725947533960,0.191819,56932.0,56931.0,0.28596208]
[1725947535364,0.191819,56932.0,56931.0,0.19880585]
[1725947539061,0.191819,56932.0,56931.0,0.11098485]
[1725947539261,0.191819,56932.0,56928.0,0.10465076]
[1725947539262,0.087824,56929.0,56928.0,0.10465076]
[1725947539565,0.188224,56929.0,56928.0,0.11101206]
[1725947540964,0.188224,56929.0,56928.0,0.11201206]
[1725947541165,0.188224,56929.0,56928.0,0.19918422]
[1725947541377,0.188224,56929.0,56928.0,0.20118422]
[1725947541670,0.188224,56929.0,56928.0,0.11401206]
[1725947542168,0.188224,56929.0,56928.0,0.20118291]
[1725947543363,0.188224,56929.0,56928.0,0.003]
[1725947544464,0.088224,56929.0,56928.0,0.090825]
[1725947544669,0.088224,56929.0,56928.0,0.16055928]
[1725947547163,0.088224,56929.0,56928.0,0.003]
[1725947547771,0.088224,56929.0,56928.0,0.07273428]
[1725947548464,0.088224,56929.0,56928.0,0.003]
[1725947548671,0.088224,56929.0,56928.0,0.0727671]
[1725947548873,0.088224,56929.0,56928.0,0.003]
[1725947549576,0.088224,56929.0,56928.0,0.07277982]
[1725947550468,0.088224,56929.0,56928.0,0.11416273]
[1725947551278,0.088224,56929.0,56928.0,0.20198773]
[1725947552672,0.088224,56929.0,56928.0,0.30663849]
[1725947553277,0.088224,56929.0,56928.0,0.21881349]
[1725947553574,0.088224,56929.0,56928.0,0.11416273]
[1725947553780,0.188224,56929.0,56928.0,0.11416273]
[1725947554372,0.188224,56929.0,56928.0,0.11420255]
[1725947554774,0.276048,56929.0,56928.0,0.11420255]
[1725947556372,0.276048,56929.0,56928.0,0.003]
[1725947556868,0.276048,56929.0,56928.0,0.002]
[1725947557069,0.276048,56929.0,56928.0,0.003]
[1725947557684,0.276048,56929.0,56928.0,0.002]
[1725947557977,0.276048,56929.0,56928.0,0.001]
[1725947559381,0.188224,56929.0,56928.0,0.001]
[1725947560167,0.188224,56929.0,56928.0,0.05330202]
[1725947561071,0.188224,56929.0,56928.0,0.05329998]
[1725947562071,0.188224,56929.0,56928.0,0.001]
[1725947562482,0.276048,56929.0,56928.0,0.001]
[1725947568790,0.176048,56929.0,56928.0,0.001]
[1725947568991,0.276048,56929.0,56928.0,0.001]
[1725947571991,0.0004,56929.0,56928.0,0.188825]
[1725947572292,0.088215,56935.0,56928.0,0.21199024]
[1725947572293,0.087816,56934.0,56928.0,0.21199024]
[1725947572599,0.087816,56934.0,56933.0,0.0004]
[1725947573687,0.0041,56939.0,56935.0,0.087815]
[1725947573884,0.0041,56942.0,56938.0,0.0004]
[1725947574087,0.0041,56945.0,56941.0,0.18752799]
[1725947574288,0.00088,56949.0,56948.0,0.087795]
[1725947574589,0.00088,56949.0,56948.0,0.17478385]
[1725947574783,0.01635904,56953.0,56950.0,0.087791]
[1725947574990,0.087786,56954.0,56952.0,0.1004]
[1725947575189,0.087786,56954.0,56953.0,0.0004]
[1725947575490,0.087786,56954.0,56952.0,0.16997628]
[1725947575691,0.087786,56954.0,56952.0,0.1004]
[1725947575692,0.0004,56953.0,56952.0,0.1004]
[1725947576091,0.0004,56953.0,56952.0,0.05248909]
[1725947576595,0.0004,56953.0,56952.0,0.088188]
[1725947576783,0.0114,56953.0,56952.0,0.089188]
[1725947576986,0.0114,56953.0,56952.0,0.0014]
[1725947577195,0.0114,56953.0,56952.0,0.05345071]
[1725947577597,0.099187,56953.0,56952.0,0.05345071]
[1725947578089,0.108187,56953.0,56952.0,0.0014]
[1725947578690,0.108187,56953.0,56952.0,0.0024]
[1725947581391,0.161987,56953.0,56952.0,0.0024]
[1725947583190,0.108187,56953.0,56952.0,0.0024]
[1725947584496,0.108187,56953.0,56952.0,0.090188]
[1725947586906,0.0204,56953.0,56952.0,0.090188]
[1725947589603,0.0204,56953.0,56952.0,0.10632181]
[1725947591608,0.108187,56953.0,56952.0,0.090188]
[1725947592995,0.108187,56953.0,56952.0,0.0024]
[1725947594112,0.268187,56953.0,56952.0,0.0024]
[1725947595211,0.355974,56953.0,56952.0,0.0024]
[1725947596012,0.268187,56953.0,56952.0,0.0024]
[1725947596202,0.355974,56953.0,56952.0,0.0024]
[1725947598106,0.295974,56953.0,56952.0,0.0024]
[1725947604008,0.195974,56953.0,56952.0,0.0024]
[1725947604207,0.295974,56953.0,56952.0,0.07159525]
[1725947604807,0.295974,56953.0,56952.0,0.0024]
[1725947610813,0.295974,56953.0,56952.0,0.07159525]
[1725947611016,0.208187,56953.0,56952.0,0.07159525]
[1725947611214,0.208187,56953.0,56952.0,0.05460248]
[1725947612423,0.295974,56953.0,56952.0,0.05460248]
[1725947613127,0.108187,56953.0,56952.0,0.05460248]
[1725947613423,0.208187,56953.0,56952.0,0.05460248]
[1725947614915,0.295974,56953.0,56952.0,0.05460248]
[1725947616226,0.208187,56953.0,56952.0,0.05460248]
[1725947616422,0.295974,56953.0,56952.0,0.05460248]
[1725947618122,0.295974,56953.0,56952.0,0.0024]
[1725947618630,0.295974,56953.0,56952.0,0.05461347]
[1725947624530,0.295974,56953.0,56952.0,0.0024]
[1725947628636,0.383761,56953.0,56952.0,0.0024]
[1725947632328,1.510521,56953.0,56952.0,0.0024]
[1725947632527,0.263385,56948.0,56947.0,0.0522393]
[1725947632729,0.263385,56948.0,56945.0,0.0522393]
[1725947632730,0.087796,56947.0,56945.0,0.0522393]
[1725947632932,0.363794,56946.0,56945.0,0.0522393]
[1725947633235,0.363394,56946.0,56945.0,0.0522393]
[1725947633435,0.363394,56946.0,56938.0,0.0045]
[1725947633436,0.175616,56939.0,56938.0,0.0045]
[1725947633646,0.087811,56937.0,56934.0,0.0522393]
[1725947633837,0.088211,56937.0,56934.0,0.0522393]
[1725947634036,0.087811,56937.0,56934.0,0.0522393]
[1725947634433,0.087811,56937.0,56933.0,0.0522393]
[1725947635839,0.10399743,56937.0,56933.0,0.0522393]
[1725947636336,0.10399743,56937.0,56933.0,0.1522393]
[1725947636544,0.10499743,56937.0,56933.0,0.1522393]
[1725947636744,0.10499743,56937.0,56936.0,0.0561]
[1725947637346,0.10499743,56937.0,56936.0,0.0541]
[1725947637347,0.10599743,56937.0,56936.0,0.0541]
[1725947641936,0.10499743,56937.0,56936.0,0.0561]
[1725947642338,0.10399743,56937.0,56936.0,0.0571]
[1725947643041,0.10499743,56937.0,56936.0,0.0561]
[1725947643547,0.10599743,56937.0,56936.0,0.0541]
[1725947645051,0.087815,56935.0,56933.0,0.08649406]
[1725947645243,0.087815,56935.0,56931.0,0.08649406]
[1725947645244,0.0004,56934.0,56931.0,0.08649406]
[1725947645446,0.188219,56932.0,56931.0,0.08649406]
[1725947645647,0.087821,56931.0,56930.0,0.17431606]
[1725947645843,0.088221,56931.0,56930.0,0.28654357]
[1725947646342,0.0004,56931.0,56928.0,0.08649406]
[1725947646547,0.0004,56929.0,56928.0,0.08649406]
[1725947646748,0.087825,56928.0,56927.0,0.08649406]